bitfinex-derivatives/quotes_SOLF0:USTF0_20260311
["timestamp","ask_amount","ask_price","bid_price","bid_amount"]
[1773231420386,5.52176007,84.759,84.73,10.621]
[1773231422494,5.52278533,84.769,84.736,10.62]
[1773231423395,5.52278533,84.769,84.729,10.621]
[1773231423990,5.52278533,84.769,84.71,2.59930279]
[1773231424293,5.52934464,84.78,84.73,2.59930279]
[1773231425388,5.52934464,84.78,84.745,10.619]
[1773231426697,5.52934464,84.78,84.752,10.618]
[1773231429699,11.9,84.788,84.752,10.618]
[1773231430199,5.62069575,84.784,84.743,10.619]
[1773231430396,5.62069575,84.769,84.71,2.59662846]
[1773231430601,5.62069575,84.759,84.71,2.59662846]
[1773231431601,5.62069575,84.759,84.73,10.621]
[1773231432501,5.62069575,84.759,84.69,21.252]
[1773231432702,5.62069575,84.759,84.71,2.59662846]
[1773231433498,5.62069575,84.759,84.723,10.622]
[1773231434299,5.62069575,84.759,84.729,10.621]
[1773231436302,5.62069575,84.759,84.735,10.62]
[1773231436596,5.66436904,84.769,84.735,10.62]
[1773231436802,8.2609975,84.78,84.742,10.619]
[1773231436996,5.66436904,84.779,84.742,10.619]
[1773231437502,16.27936904,84.776,84.734,10.62]
[1773231438705,5.66436904,84.776,84.741,10.62]
[1773231439100,5.66436904,84.776,84.72,2.59662846]
[1773231440508,5.65992793,84.775,84.72,2.59662846]
[1773231442412,5.65992793,84.775,84.736,10.62]
[1773231444903,5.65992793,84.775,84.742,10.619]
[1773231445311,5.65992793,84.775,84.73,2.59662846]
[1773231445711,5.65992793,84.775,84.696,21.63433695]
[1773231445911,5.65992793,84.775,84.72,2.59662846]
[1773231447112,5.65992793,84.775,84.736,10.62]
[1773231447616,5.65992793,84.775,84.72,2.59662846]
[1773231447915,5.61839553,84.773,84.72,2.59662846]
[1773231448109,5.61839553,84.769,84.735,10.62]
[1773231452820,10.617,84.766,84.72,2.59662846]
[1773231453019,5.61839553,84.769,84.72,2.59662846]
[1773231454418,5.61839553,84.769,84.734,10.62]
[1773231454619,5.61839553,84.769,84.695,21.251]
[1773231454620,5.61839553,84.769,84.71,2.59662846]
[1773231455020,2.59662846,84.77,84.72,10.622]
[1773231455021,5.52601411,84.76,84.72,10.622]
[1773231455415,5.52601411,84.76,84.71,2.59662846]
[1773231456423,5.52601411,84.76,84.727,10.621]
[1773231457428,5.52601411,84.76,84.71,2.59662846]
[1773231458029,5.52601411,84.76,84.724,10.622]
[1773231458730,5.52601411,84.76,84.73,10.621]
[1773231461131,5.52601411,84.76,84.722,10.622]
[1773231461432,5.54575313,84.758,84.704,21.63433695]
[1773231461640,5.54575313,84.758,84.701,21.63433695]
[1773231461931,5.54575313,84.758,84.702,21.63433695]
[1773231462131,5.54575313,84.758,84.715,10.623]
[1773231463434,5.54575313,84.758,84.721,10.622]
[1773231464434,5.51884518,84.772,84.73,2.59662846]
[1773231465033,5.51884518,84.77,84.72,2.59662846]
[1773231465336,2.94854358,84.769,84.72,2.59662846]
[1773231465527,5.51884518,84.77,84.72,2.59662846]
[1773231465733,5.51468788,84.766,84.726,10.621]
[1773231466034,2.94879388,84.765,84.726,10.621]
[1773231466230,5.51468788,84.763,84.726,10.621]
[1773231470038,5.51468788,84.763,84.732,10.621]
[1773231476343,5.49214912,84.761,84.732,10.621]
[1773231476543,2.94883281,84.76,84.732,10.621]
[1773231476740,5.49214912,84.761,84.732,10.621]
[1773231477141,2.94884863,84.76,84.732,10.621]
[1773231477337,2.94884863,84.759,84.732,10.621]
[1773231477541,2.94884863,84.758,84.732,10.621]
[1773231477741,2.94884863,84.757,84.732,10.621]
[1773231477943,5.49214912,84.761,84.732,10.621]
[1773231478244,2.94884921,84.76,84.732,10.621]
[1773231478444,2.9488494,84.759,84.732,10.621]
[1773231478645,2.9488494,84.758,84.732,10.621]
[1773231478838,8.43031894,84.757,84.724,10.622]
[1773231479039,5.48146954,84.755,84.724,10.622]
[1773231479845,5.48146954,84.755,84.71,2.59662846]
[1773231480742,5.48146954,84.755,84.72,2.59662846]
[1773231481343,5.4836548,84.777,84.73,2.59662846]
[1773231481646,2.94846759,84.776,84.73,2.59662846]
[1773231481842,5.4836548,84.777,84.73,2.59662846]
[1773231481843,2.94846759,84.775,84.73,2.59662846]
[1773231482044,5.4836548,84.777,84.73,2.59662846]
[1773231482244,2.94825309,84.776,84.73,2.59662846]
[1773231482546,2.94825482,84.775,84.73,2.59662846]
[1773231482744,5.4836548,84.777,84.73,2.59662846]
[1773231483041,2.94825501,84.776,84.73,2.59662846]
[1773231483241,5.4836548,84.777,84.73,2.59662846]
[1773231483544,2.94825116,84.776,84.73,2.59662846]
[1773231483741,5.4836548,84.777,84.73,2.59662846]
[1773231483941,5.4836548,84.777,84.74,2.59662846]
[1773231484443,5.4836548,84.777,84.73,2.59662846]
[1773231485442,5.4836548,84.777,84.747,10.619]
[1773231487037,5.4836548,84.777,84.753,10.618]
[1773231488038,5.4836548,84.777,84.746,10.619]
[1773231491145,5.4836548,84.777,84.722,21.63433695]
[1773231491345,5.4836548,84.777,84.73,2.59667608]
[1773231491745,5.4836548,84.777,84.742,10.619]
[1773231492843,5.54757273,84.79,84.74,2.59667608]
[1773231493043,5.54757273,84.788,84.74,2.59667608]
[1773231493243,5.54757273,84.786,84.74,2.59667608]
[1773231494446,5.54757273,84.786,84.751,10.618]
[1773231496349,5.54757273,84.786,84.757,10.618]
[1773231496550,5.54757273,84.786,84.74,2.59667608]
[1773231497353,5.54757273,84.786,84.754,10.618]
[1773231499459,5.52009136,84.784,84.745,10.619]
[1773231502559,5.52009136,84.784,84.753,10.618]
[1773231503354,5.52009136,84.784,84.709,11.88]
[1773231503355,5.52009136,84.784,84.72,21.63433695]
[1773231503559,5.52009136,84.784,84.73,2.59667608]
[1773231503760,5.52009136,84.784,84.74,2.59667608]
[1773231504059,5.46159439,84.782,84.743,10.619]
[1773231504761,5.46159439,84.797,84.75,2.59667608]
[1773231504959,11.88,84.798,84.75,2.59667608]
[1773231504960,5.46159439,84.795,84.75,2.59667608]
[1773231505161,2.94791737,84.794,84.75,2.59667608]
[1773231505453,5.46159439,84.795,84.75,2.59667608]
[1773231505664,5.46159439,84.793,84.75,2.59667608]
[1773231506454,5.46159439,84.793,84.758,10.617]
[1773231506854,5.47621573,84.791,84.758,10.617]
[1773231507153,5.47621573,84.789,84.758,10.617]
[1773231507759,5.47621573,84.789,84.763,10.617]
[1773231514461,5.51388536,84.802,84.769,10.616]
[1773231514766,5.51388536,84.799,84.75,2.59667608]
[1773231514962,5.51388536,84.797,84.75,2.59667608]
[1773231515167,5.51388536,84.795,84.75,2.59667608]
[1773231515369,2.94791981,84.794,84.75,2.59667608]
[1773231515666,2.94791981,84.793,84.75,2.59667608]
[1773231515867,5.51900387,84.792,84.733,21.63433695]
[1773231516069,5.51900387,84.792,84.74,2.59667608]
[1773231517471,5.51900387,84.792,84.762,10.617]
[1773231519873,5.51900387,84.792,84.74,2.59667608]
[1773231520177,5.51900387,84.792,84.753,10.618]
[1773231521175,2.94792573,84.791,84.758,10.617]
[1773231521380,5.51900387,84.792,84.758,10.617]
[1773231521679,10.613,84.798,84.758,10.617]
[1773231521680,8.46412983,84.791,84.758,10.617]
[1773231521881,5.51620545,84.791,84.758,10.617]
[1773231523285,2.94792419,84.79,84.758,10.617]
[1773231523485,5.51620545,84.791,84.758,10.617]
[1773231523688,2.94792419,84.79,84.758,10.617]
[1773231523883,5.51620545,84.791,84.758,10.617]
[1773231524186,5.60217366,84.789,84.758,10.617]
[1773231524381,2.94792419,84.788,84.758,10.617]
[1773231524588,5.60217366,84.789,84.758,10.617]
[1773231524883,2.94792457,84.788,84.758,10.617]
[1773231525084,5.60217366,84.789,84.758,10.617]
[1773231525284,2.94792457,84.788,84.758,10.617]
[1773231525485,5.60217366,84.789,84.758,10.617]
[1773231525687,2.94792457,84.788,84.758,10.617]
[1773231525985,5.60217366,84.789,84.758,10.617]
[1773231526179,2.94792457,84.788,84.758,10.617]
[1773231526379,2.94792457,84.787,84.758,10.617]
[1773231526584,2.94792457,84.786,84.758,10.617]
[1773231526789,2.94792457,84.785,84.758,10.617]
[1773231527085,2.94792457,84.784,84.758,10.617]
[1773231527287,5.60217366,84.789,84.758,10.617]
[1773231527489,5.60000037,84.787,84.758,10.617]
[1773231527684,11.88,84.802,84.737,21.63433695]
[1773231527685,5.60535015,84.785,84.737,21.63433695]
[1773231527882,5.60535015,84.779,84.724,21.63433695]
[1773231528086,5.60535015,84.777,84.724,21.63433695]
[1773231528286,5.60535015,84.775,84.723,21.63433695]
[1773231528482,5.60535015,84.773,84.723,21.63433695]
[1773231528690,5.60535015,84.771,84.723,21.63433695]
[1773231528884,2.94792496,84.77,84.723,21.63433695]
[1773231529082,2.94792496,84.769,84.723,21.63433695]
[1773231529289,2.94792496,84.768,84.722,21.63433695]
[1773231529490,5.60535015,84.771,84.733,10.62]
[1773231529688,2.94845905,84.77,84.733,10.62]
[1773231529889,2.94845905,84.769,84.733,10.62]
[1773231530188,2.94845905,84.768,84.733,10.62]
[1773231530387,5.60535015,84.771,84.733,10.62]
[1773231530588,8.58039298,84.77,84.733,10.62]
[1773231530784,2.94845924,84.769,84.733,10.62]
[1773231530983,5.63193374,84.77,84.733,10.62]
[1773231532682,17.51189985,84.779,84.73,2.59667608]
[1773231532882,5.63189985,84.777,84.73,2.59667608]
[1773231533086,2.94825368,84.776,84.73,2.59667608]
[1773231533289,2.94825368,84.775,84.73,2.59667608]
[1773231533488,5.63189985,84.777,84.73,2.59667608]
[1773231533691,5.67784074,84.775,84.741,10.62]
[1773231533893,5.67784074,84.773,84.741,10.62]
[1773231534188,5.67784074,84.77,84.73,2.59667608]
[1773231534381,5.67784074,84.77,84.72,24.23101303]
[1773231535382,5.67784074,84.77,84.731,10.621]
[1773231535784,5.67784074,84.77,84.72,24.23101303]
[1773231536690,5.67389947,84.768,84.736,10.62]
[1773231538894,10.615,84.778,84.742,10.619]
[1773231539197,2.94840427,84.777,84.742,10.619]
[1773231539397,5.67378689,84.777,84.742,10.619]
[1773231539695,5.67378689,84.775,84.742,10.619]
[1773231540096,10.615,84.778,84.73,2.59667608]
[1773231540097,5.64562835,84.773,84.735,10.62]
[1773231540296,11.88,84.779,84.735,10.62]
[1773231540297,5.64562835,84.771,84.735,10.62]
[1773231540493,5.64562835,84.759,84.712,21.63433695]
[1773231540687,5.64562835,84.759,84.71,2.59667608]
[1773231541791,5.64562835,84.759,84.72,2.59667608]
[1773231543397,5.64562835,84.759,84.727,10.621]
[1773231543891,5.64562835,84.759,84.732,10.621]
[1773231545291,5.64562835,84.759,84.726,10.621]
[1773231545491,5.64562835,84.759,84.69,11.88]
[1773231545492,5.64562835,84.759,84.71,2.59667608]
[1773231545692,5.64562835,84.759,84.71,2.59820854]
[1773231547402,5.64562835,84.759,84.725,10.622]
[1773231549305,5.64562835,84.759,84.71,2.59820854]
[1773231549306,5.61839162,84.756,84.719,10.622]
[1773231550402,5.62457695,84.752,84.719,10.622]
[1773231550604,5.62457695,84.752,84.711,10.623]
[1773231551101,5.62457695,84.75,84.711,10.623]
[1773231551297,5.62457695,84.748,84.711,10.623]
[1773231552611,5.62970471,84.746,84.711,10.623]
[1773231554408,5.63242589,84.744,84.711,10.623]
[1773231559708,5.59342255,84.762,84.71,2.59820854]
[1773231560011,21.231,84.778,84.7,2.59820854]
[1773231560012,5.59342255,84.759,84.7,2.59820854]
[1773231560212,5.59342255,84.757,84.7,2.59820854]
[1773231560814,5.59342255,84.747,84.704,10.624]
[1773231562313,10.619,84.744,84.704,10.624]
[1773231562513,5.59144041,84.743,84.704,10.624]
[1773231562915,5.59144041,84.743,84.7,2.59820854]
[1773231563509,5.59144041,84.742,84.699,10.625]
[1773231563814,5.59144041,84.742,84.69,2.59820854]
[1773231566317,5.59144041,84.742,84.7,2.59820854]
[1773231566819,5.60374102,84.764,84.72,2.59820854]
[1773231567115,5.60374102,84.764,84.687,21.63433695]
[1773231567316,5.60374102,84.764,84.71,2.59820854]
[1773231568308,10.618,84.756,84.716,10.623]
[1773231568619,5.57177881,84.755,84.716,10.623]
[1773231569317,5.57177881,84.755,84.721,10.622]
[1773231571917,10.619,84.749,84.712,10.623]
[1773231572120,5.57177881,84.755,84.712,10.623]
[1773231572716,5.57177881,84.755,84.718,10.622]
[1773231573416,5.57177881,84.755,84.71,2.59820854]
[1773231573417,5.57177881,84.755,84.723,10.622]
[1773231573721,5.57177881,84.755,84.673,56.667]
[1773231573722,5.63866179,84.749,84.69,2.59820854]
[1773231575319,5.63866179,84.738,84.702,10.624]
[1773231576727,5.63866179,84.738,84.708,10.624]
[1773231577717,11.9,84.762,84.714,10.623]
[1773231577718,5.54140027,84.748,84.714,10.623]
[1773231577919,5.54140027,84.759,84.71,2.59820854]
[1773231578522,5.54140027,84.759,84.698,21.63433695]
[1773231578523,5.54140027,84.759,84.72,2.59820854]
[1773231579322,5.54140027,84.759,84.723,10.622]
[1773231581825,5.53279138,84.772,84.73,2.59820854]
[1773231582624,5.53279138,84.772,84.72,2.59820854]
[1773231583325,5.53279138,84.783,84.73,2.59820854]
[1773231583518,2.94825238,84.782,84.73,2.59820854]
[1773231583717,5.53279138,84.783,84.73,2.59820854]
[1773231583919,5.51189066,84.781,84.73,2.59820854]
[1773231585222,16.12689066,84.778,84.736,10.62]
[1773231585424,5.51189066,84.777,84.736,10.62]
[1773231588530,16.15201159,84.773,84.736,10.62]
[1773231588934,5.53601159,84.773,84.736,10.62]
[1773231590427,5.53217847,84.772,84.736,10.62]
[1773231590933,10.616,84.767,84.731,10.621]
[1773231593335,5.53217847,84.772,84.72,2.59820854]
[1773231594333,16.13937309,84.771,84.731,10.621]
[1773231594535,5.52337309,84.77,84.731,10.621]
[1773231594830,2.59820854,84.78,84.72,2.59820854]
[1773231595133,2.59820854,84.78,84.7,11.9]
[1773231595134,5.52337309,84.781,84.73,2.59820854]
[1773231596338,5.52337309,84.781,84.745,10.619]
[1773231598839,5.49053752,84.779,84.745,10.619]
[1773231600338,10.615,84.778,84.745,10.619]
[1773231600539,5.48660472,84.777,84.72,2.59820854]
[1773231600841,2.59820854,84.77,84.71,2.59820854]
[1773231601036,5.48660472,84.769,84.71,2.59820854]
[1773231602339,5.48660472,84.769,84.729,10.621]
[1773231603340,10.616,84.767,84.729,10.621]
[1773231603538,5.4902315,84.766,84.729,10.621]
[1773231604337,10.617,84.765,84.729,10.621]
[1773231604533,5.48294507,84.764,84.723,10.622]
[1773231605440,5.48294507,84.762,84.723,10.622]
[1773231606142,5.48294507,84.762,84.71,2.59820854]
[1773231606444,5.47504815,84.759,84.7,2.59820854]
[1773231607047,5.47504815,84.759,84.72,10.622]
[1773231607844,21.229,84.786,84.72,10.622]
[1773231607845,10.616,84.768,84.726,10.621]
[1773231608446,16.09420705,84.768,84.726,10.621]
[1773231608648,5.47820705,84.767,84.726,10.621]
[1773231611752,5.47820705,84.767,84.733,10.62]
[1773231624863,10.616,84.766,84.733,10.62]
[1773231625059,10.616,84.766,84.72,2.59824037]
[1773231625560,16.12040026,84.766,84.72,2.59824037]
[1773231625760,2.94880821,84.765,84.72,2.59824037]
[1773231626057,2.94880821,84.764,84.72,2.59824037]
[1773231626363,2.94880821,84.763,84.734,10.62]
[1773231626665,2.94880821,84.762,84.734,10.62]
[1773231626864,5.50026355,84.765,84.734,10.62]
[1773231627159,2.94880821,84.764,84.734,10.62]
[1773231627358,2.94880821,84.763,84.734,10.62]
[1773231627563,5.50026355,84.765,84.72,2.59824037]
[1773231627962,5.50014043,84.779,84.718,21.63433695]
[1773231628160,5.50014043,84.777,84.73,2.59824037]
[1773231628359,2.94854673,84.776,84.73,2.59824037]
[1773231628563,2.94854673,84.775,84.73,2.59824037]
[1773231628763,5.50014043,84.769,84.72,2.59824037]
[1773231628957,5.50014043,84.767,84.72,2.59824037]
[1773231629163,5.50014043,84.765,84.72,2.59824037]
[1773231629358,5.50014043,84.763,84.72,2.59824037]
[1773231629761,5.50014043,84.763,84.71,24.23257732]
[1773231630466,5.50014043,84.763,84.731,10.621]
[1773231630858,5.50014043,84.763,84.736,10.62]
[1773231631063,5.50014043,84.763,84.718,21.63433695]
[1773231631259,5.50014043,84.763,84.72,2.59824037]
[1773231632872,5.50014043,84.763,84.714,21.63433695]
[1773231633172,5.50014043,84.763,84.718,21.63433695]
[1773231633672,5.50014043,84.763,84.72,2.59824037]
[1773231633970,5.50014043,84.763,84.735,10.62]
[1773231637370,5.50014043,84.763,84.728,10.621]
[1773231637679,5.48618197,84.761,84.728,10.621]
[1773231638474,5.49033373,84.759,84.728,10.621]
[1773231638674,5.49033373,84.759,84.71,24.23257732]
[1773231638675,5.49033373,84.759,84.733,10.621]
[1773231641770,5.49166311,84.769,84.738,10.62]
[1773231641976,2.94880801,84.768,84.738,10.62]
[1773231642172,2.94880801,84.767,84.738,10.62]
[1773231642368,5.49166311,84.769,84.738,10.62]
[1773231642369,2.94880801,84.766,84.738,10.62]
[1773231642678,2.94880801,84.765,84.738,10.62]
[1773231642978,5.49166311,84.769,84.738,10.62]
[1773231643177,5.49166311,84.767,84.738,10.62]
[1773231643378,2.94860138,84.766,84.738,10.62]
[1773231643578,2.94860138,84.765,84.738,10.62]
[1773231643779,5.49166311,84.767,84.738,10.62]
[1773231643976,2.94860138,84.766,84.738,10.62]
[1773231644181,2.94860138,84.765,84.738,10.62]
[1773231644379,2.94860138,84.764,84.738,10.62]
[1773231644684,5.49166311,84.767,84.738,10.62]
[1773231644982,2.94860138,84.766,84.738,10.62]
[1773231645279,2.94860138,84.765,84.738,10.62]
[1773231645475,2.94860138,84.764,84.738,10.62]
[1773231645677,5.49166311,84.767,84.738,10.62]
[1773231645880,2.94860138,84.766,84.738,10.62]
[1773231646079,2.94860138,84.765,84.738,10.62]
[1773231646282,5.48235668,84.763,84.716,21.63433695]
[1773231646579,5.48235668,84.739,84.7,21.63433695]
[1773231646886,5.48235668,84.739,84.695,21.63433695]
[1773231647078,5.48235668,84.737,84.697,10.625]
[1773231647885,5.49758374,84.734,84.697,10.625]
[1773231648677,2.59824037,84.73,84.697,10.625]
[1773231648980,5.49758374,84.729,84.69,10.626]
[1773231650384,5.49758374,84.729,84.696,10.625]
[1773231650579,8.0890885,84.74,84.696,10.625]
[1773231650785,5.49084813,84.739,84.696,10.625]
[1773231651291,5.49084813,84.761,84.71,2.59824037]
[1773231652386,5.49084813,84.761,84.725,10.622]
[1773231655487,10.616,84.767,84.725,10.622]
[1773231655795,16.08801944,84.767,84.725,10.622]
[1773231655992,5.47201944,84.766,84.725,10.622]
[1773231656591,5.47201944,84.764,84.725,10.622]
[1773231656786,5.47201944,84.764,84.71,2.59824037]
[1773231657092,11.88,84.774,84.72,2.59824037]
[1773231657390,8.07025981,84.8,84.75,2.59824037]
[1773231657597,2.9480095,84.799,84.75,2.59824037]
[1773231657792,2.9480095,84.798,84.75,2.59824037]
[1773231658096,2.9480095,84.797,84.75,2.59824037]
[1773231658291,2.9480095,84.796,84.75,2.59824037]
[1773231658496,5.47201944,84.8,84.762,10.617]
[1773231659091,5.47201944,84.8,84.75,2.59824037]
[1773231659092,2.59824037,84.81,84.77,10.616]
[1773231659298,2.94771787,84.809,84.77,10.616]
[1773231659498,5.44628503,84.812,84.77,10.616]
[1773231659499,2.94771787,84.808,84.77,10.616]
[1773231659693,2.94771787,84.807,84.77,10.616]
[1773231659894,2.94771787,84.806,84.77,10.616]
[1773231660095,2.94771787,84.805,84.77,10.616]
[1773231660295,2.94771787,84.804,84.77,10.616]
[1773231660496,2.94771787,84.803,84.77,10.616]
[1773231660697,5.44628503,84.812,84.77,10.616]
[1773231660897,5.49093793,84.81,84.77,10.616]
[1773231661093,8.43844147,84.809,84.77,10.616]
[1773231661293,8.43844147,84.808,84.77,10.616]
[1773231661498,2.94750354,84.807,84.77,10.616]
[1773231661699,5.49093793,84.808,84.77,10.616]
[1773231661888,8.43453874,84.807,84.77,10.616]
[1773231662093,5.4870352,84.807,84.77,10.616]
[1773231662696,2.94755873,84.806,84.77,10.616]
[1773231662896,5.4870352,84.807,84.77,10.616]
[1773231665099,5.47318145,84.805,84.761,10.617]
[1773231666395,5.47606717,84.802,84.761,10.617]
[1773231667500,5.47606717,84.802,84.768,10.616]
[1773231668095,5.47606717,84.802,84.75,2.59824037]
[1773231668294,5.47800215,84.799,84.75,2.59824037]
[1773231669404,5.47800215,84.799,84.76,10.617]
[1773231677304,5.44519993,84.789,84.73,2.59579006]
[1773231677710,11.88,84.81,84.72,2.59579006]
[1773231677711,5.44519993,84.779,84.72,2.59579006]
[1773231679408,16.05997368,84.776,84.733,10.62]
[1773231680010,5.46558628,84.775,84.733,10.62]
[1773231685414,5.46558628,84.775,84.698,11.88]
[1773231685415,5.46869644,84.793,84.74,2.59579006]
[1773231685616,5.46869644,84.805,84.75,2.59579006]
[1773231686318,5.46869644,84.805,84.76,2.59579006]
[1773231686819,10.612,84.804,84.767,10.616]
[1773231687218,16.08904713,84.804,84.767,10.616]
[1773231688021,5.46930754,84.801,84.767,10.616]
[1773231689810,2.59579006,84.81,84.75,2.59579006]
[1773231690018,5.46930722,84.812,84.76,2.59579006]
[1773231690412,5.46930722,84.812,84.74,21.24]
[1773231690620,5.46930722,84.812,84.77,2.59579006]
[1773231691821,5.62099831,84.823,84.77,2.59579006]
[1773231692411,5.62099831,84.821,84.77,2.59579006]
[1773231692617,5.62099831,84.809,84.75,2.59579006]
[1773231693825,5.59997697,84.798,84.75,2.59579006]
[1773231694017,5.59997697,84.798,84.74,2.59579006]
[1773231694916,11.88,84.833,84.721,11.88]
[1773231694917,5.59997697,84.787,84.745,10.619]
[1773231696218,5.60666628,84.785,84.745,10.619]
[1773231697521,5.60666628,84.782,84.745,10.619]
[1773231699417,5.60666628,84.782,84.751,10.618]
[1773231699623,5.59836553,84.795,84.751,10.618]
[1773231700119,5.59836553,84.795,84.764,10.617]
[1773231700321,10.612,84.804,84.764,10.617]
[1773231700521,8.54608094,84.803,84.764,10.617]
[1773231700718,8.54608094,84.802,84.764,10.617]
[1773231701025,2.94771864,84.801,84.764,10.617]
[1773231701221,2.94771864,84.8,84.764,10.617]
[1773231701424,5.5983623,84.802,84.764,10.617]
[1773231701425,2.94771864,84.799,84.764,10.617]
[1773231701615,2.94771864,84.798,84.764,10.617]
[1773231701923,11.88,84.805,84.771,10.616]
[1773231702123,2.94765691,84.804,84.771,10.616]
[1773231702325,2.94765691,84.803,84.771,10.616]
[1773231702528,11.88,84.805,84.771,10.616]
[1773231702529,2.94765691,84.802,84.771,10.616]
[1773231702728,5.57554523,84.808,84.771,10.616]
[1773231702922,8.52299779,84.807,84.771,10.616]
[1773231703117,2.94745256,84.806,84.771,10.616]
[1773231703318,2.94745256,84.805,84.76,2.59579006]
[1773231703521,2.94745256,84.804,84.76,2.59579006]
[1773231703732,8.80019625,84.834,84.763,21.234]
[1773231703930,7.0438817,84.832,84.78,2.59579006]
[1773231704627,7.0438817,84.829,84.78,2.59579006]
[1773231705825,7.0438817,84.829,84.795,10.613]
[1773231706130,6.82240638,84.841,84.795,10.613]
[1773231706627,6.82240638,84.853,84.8,2.59579006]
[1773231707129,0.00034672,84.836,84.8,2.59579006]
[1773231708122,0.00034672,84.836,84.819,10.61]
[1773231710032,6.81297226,84.877,84.82,2.59579006]
[1773231710240,6.81297226,84.858,84.81,2.59579006]
[1773231710534,6.81297226,84.858,84.8,2.59579006]
[1773231710727,2.59579006,84.85,84.79,2.59579006]
[1773231710932,6.81297226,84.849,84.79,2.59579006]
[1773231712429,6.82222938,84.847,84.798,10.612]
[1773231712937,6.82222938,84.847,84.79,2.59579006]
[1773231713131,6.82222938,84.847,84.805,10.611]
[1773231714732,6.84347748,84.861,84.81,2.59579006]
[1773231715436,10.605,84.859,84.81,13.20679006]
[1773231715630,6.84347748,84.858,84.81,13.20679006]
[1773231715830,6.84347748,84.858,84.81,10.611]
[1773231716433,6.84347748,84.858,84.817,10.61]
[1773231716633,6.82542255,84.869,84.81,2.59579006]
[1773231716939,6.82542255,84.869,84.82,2.59579006]
[1773231717138,6.82542255,84.869,84.81,2.59579006]
[1773231717339,6.82542255,84.866,84.81,2.59579006]
[1773231717833,10.605,84.857,84.81,2.59579006]
[1773231718143,6.82542255,84.866,84.81,2.59579006]
[1773231719436,6.82891141,84.864,84.815,10.61]
[1773231720035,6.85385966,84.858,84.807,10.611]
[1773231720539,6.85385966,84.843,84.79,2.59579006]
[1773231721334,6.85385966,84.843,84.798,10.612]
[1773231721731,6.87064684,84.841,84.79,2.59579006]
[1773231721937,6.87064684,84.839,84.78,2.59579006]
[1773231722641,6.87064684,84.826,84.781,10.614]
[1773231722840,6.87064684,84.826,84.77,2.59579006]
[1773231723739,6.89483944,84.838,84.78,2.59579006]
[1773231724241,6.89483944,84.838,84.79,2.59579006]
[1773231724736,10.606,84.849,84.807,10.611]
[1773231725040,6.89483944,84.848,84.807,10.611]
[1773231726333,6.87217136,84.839,84.78,2.59579006]
[1773231727340,6.87217136,84.829,84.77,2.59579006]
[1773231727541,6.87217136,84.819,84.77,2.59579006]
[1773231727741,6.87217136,84.819,84.779,10.615]
[1773231728134,6.87217136,84.819,84.77,2.59579006]
[1773231729442,6.87217136,84.819,84.786,10.614]
[1773231733042,10.608,84.837,84.792,10.613]
[1773231733243,6.87443735,84.836,84.78,2.59417541]
[1773231733445,6.87443735,84.836,84.79,2.59417541]
[1773231733648,6.87443735,84.856,84.8,2.59417541]
[1773231734050,6.87443735,84.856,84.81,2.59417541]
[1773231735549,6.78904616,84.853,84.811,10.611]
[1773231736947,6.76166145,84.864,84.82,2.59417541]
[1773231737246,6.76166145,84.864,84.81,2.59417541]
[1773231738443,6.77511487,84.863,84.821,10.609]
[1773231738641,6.77511487,84.863,84.81,2.59417541]
[1773231739648,6.77511487,84.863,84.82,2.59417541]
[1773231740451,6.78708441,84.894,84.814,14.60399344]
[1773231740661,2.59417541,84.88,84.83,2.59417541]
[1773231740958,6.78708441,84.879,84.841,10.607]
[1773231743460,6.78708441,84.879,84.847,10.606]
[1773231744853,6.74753371,84.889,84.84,2.59417541]
[1773231745248,6.74753371,84.889,84.858,10.605]
[1773231745857,6.74753371,84.889,84.866,10.604]
[1773231746157,6.74753371,84.889,84.85,2.59417541]
[1773231746358,6.74753371,84.889,84.84,2.59417541]
[1773231746754,6.74753371,84.889,84.848,10.606]
[1773231747154,6.74753371,84.889,84.84,2.59417541]
[1773231747356,6.7628695,84.901,84.866,10.604]
[1773231747557,6.7628695,84.901,84.85,2.59417541]
[1773231747755,6.76560719,84.915,84.86,2.59417541]